[Event "Serbian League 2024"]
[Site "Bajina Basta"]
[Date "2024.09.30"]
[Round "4.13"]
[White "Ivic, Velimir"]
[Black "Andreikin, Dmitry"]
[Result "1/2-1/2"]
[ECO "B15"]
[WhiteElo "2599"]
[BlackElo "2729"]
[Annotator "TA"]
[PlyCount "81"]
[EventDate "2024.09.26"]
[EventType "team-tourn"]
[EventCountry "SRB"]
[SourceTitle "playchess.com"]
[Source "ChessBase"]
[SourceQuality "1"]
[TimeControl "40/5400+30:1800+30"]

{[%evp 10,81,33,24,24,20,16,16,1,8,0,0,27,12,4,4,7,11,35,21,30,0,3,8,12,16,14,17,14,7,22,17,16,25,19,10,31,24,25,8,35,36,27,27,32,33,33,0,28,0,43,33,48,44,50,23,26,0,5,1,1,1,1,1,1,0,0,0,0,1,1,1,2,3]} 1. e4 {[%emt 0:00:08]} c6 {[%emt 0:00:11]} 2. d4 {[%emt 0:00:46]} d5 {[%emt 0:00:06]} 3. Nd2 {[%emt 0:01:38]} dxe4 {[%emt 0:00:11]} 4. Nxe4 {[%emt 0:00:06]} Nf6 {[%emt 0:00:06]} 5. Nxf6+ {[%emt 0:00:29]} exf6 {[%emt 0:00:07]} 6. Be3 {[%emt 0:02:02]} Bd6 {[%emt 0:01:15]} 7. Bd3 {[%emt 0:00:27]} Na6 {[%emt 0:02:32]} 8. a3 {[%emt 0:01:56] Prevents Nb4.} O-O {[%emt 0:04:48]} 9. Ne2 {[%emt 0:01:01]} Bf5 {[%emt 0:08:03]} 10. O-O {[%emt 0:05:08]} Qd7 {[%emt 0:00:43]} 11. c4 {[%emt 0:07:19]} Rfe8 {[%emt 0:00:40]} 12. Bxf5 {[%emt 0:05:41]} Qxf5 {[%emt 0:00:19]} 13. Ng3 {[%emt 0:01:08]} Bxg3 {[%emt 0:04:33]} 14. hxg3 {[%emt 0:00:08]} ({Much worse is} 14. fxg3 Qe6 15. Re1 Qxc4 $17) 14... Nc7 {[%emt 0:00:22]} 15. Qb3 {[%emt 0:16:02]} b5 {[%emt 0:08:58]} 16. cxb5 {[%emt 0:02:53]} Qxb5 {[%emt 0:15:20]} 17. Qxb5 {[%emt 0:00:28]} cxb5 {[%emt 0:00:06]} 18. Rac1 {[%emt 0:01:59]} Nd5 {[%emt 0:00:28]} 19. Rfe1 {[%emt 0:01:32]} Red8 {[%emt 0:08:32]} 20. Rc5 {[%emt 0:02:59]} a6 {[%emt 0:00:13]} 21. g4 {[%emt 0:06:42]} Rd6 {[%emt 0:01:41]} 22. Rec1 {[%emt 0:07:02]} Kf8 {[%emt 0:01:23]} 23. Kf1 {[%emt 0:02:12]} Re8 {[%emt 0:01:48]} 24. Rc8 {[%emt 0:06:29]} Ke7 {[%emt 0:05:03]} 25. Ke2 {[%emt 0:02:58]} Rxc8 {[%emt 0:01:49]} 26. Rxc8 $14 {[%emt 0:00:06][%mdl 4096] Endgame. KRB-KRN} Rd8 {[%emt 0:00:05] Inhibits Ra8.} 27. Rc6 {[%emt 0:01:18]} Rd6 {[%emt 0:00:05]} 28. Rc8 {[%emt 0:02:47]} Rd8 {[%emt 0:00:12] Prevents Ra8.} 29. Rc6 {[%emt 0:00:04]} Rd6 {[%emt 0:00:05]} 30. Rc5 {[%emt 0:01:51]} Kd7 {[%emt 0:01:15]} 31. Kd3 {[%emt 0:01:16]} Ne7 {[%emt 0:02:03]} 32. Bf4 {[%emt 0:03:21]} Rc6 {[%emt 0:00:44]} 33. b4 {[%emt 0:03:36]} g6 {[%emt 0:11:55] The position is equal.} 34. f3 {[%emt 0:08:24]} Rxc5 {[%emt 0:00:33]} 35. dxc5 $11 {[%emt 0:00:27] KB-KN} Ke6 {[%emt 0:06:25]} 36. Bd2 {[%emt 0:02:30]} f5 {[%emt 0:08:12]} 37. Ke3 {[%emt 0:01:03]} fxg4 {[%emt 0:01:02]} 38. fxg4 {[%emt 0:00:04]} Nc6 {[%emt 0:03:06]} 39. Ke4 {[%emt 0:03:23]} Ne5 {[%emt 0:00:17]} 40. g5 {[%emt 0:00:31]} Nc6 {[%emt 0:02:01]} 41. Bc3 {[%emt 0:07:48] Weighted Error Value: White=0.07 (flawless) /Black=0.05 (flawless) .  Inaccurate:     	White=3     	Black=2      OK:         	White=15    	Black=18} 1/2-1/2

[Event "Serbian League 2024"]
[Site "Bajina Basta"]
[Date "2024.09.30"]
[Round "4.14"]
[White "Matlakov, Maxim"]
[Black "Djukic, Nikola"]
[Result "1-0"]
[ECO "B52"]
[WhiteElo "2636"]
[BlackElo "2515"]
[Annotator "TA"]
[PlyCount "71"]
[EventDate "2024.09.26"]
[EventType "team-tourn"]
[EventCountry "SRB"]
[SourceTitle "playchess.com"]
[Source "ChessBase"]
[SourceQuality "1"]
[TimeControl "40/5400+30:1800+30"]

{[%evp 9,71,12,31,26,26,6,12,10,0,0,0,0,0,-6,12,16,32,27,24,21,46,45,37,30,50,40,65,41,63,48,104,117,93,95,118,97,127,110,133,117,168,182,220,211,215,213,309,252,247,226,249,235,235,239,250,241,269,263,586,398,1525,1467,29989,29989]} 1. e4 {[%emt 0:00:04]} c5 {[%emt 0:05:44]} 2. Nf3 {[%emt 0:00:06]} d6 {[%emt 0:00:07]} 3. Bb5+ {[%emt 0:00:16]} Bd7 {[%emt 0:00:06]} 4. c4 {[%emt 0:00:15]} Nf6 {[%emt 0:00:56]} 5. Nc3 {[%emt 0:00:46]} g6 {[%emt 0:00:08]} 6. d4 {[%emt 0:11:42]} cxd4 {[%emt 0:00:08]} 7. Qxd4 {[%emt 0:00:08]} a6 {[%emt 0:05:51]} 8. Bxd7+ {[%emt 0:01:02] The position is equal.} Nbxd7 {[%emt 0:00:07]} 9. O-O {[%emt 0:22:08]} Bg7 {[%emt 0:00:42]} 10. Qd3 {[%emt 0:00:15]} O-O {[%emt 0:05:48]} 11. Qe2 {[%emt 0:00:28]} Rc8 {[%emt 0:11:45]} 12. Bd2 {[%emt 0:02:32]} Ng4 {[%emt 0:00:21]} 13. Rac1 {[%emt 0:03:05]} Nge5 {[%emt 0:02:44]} 14. Nxe5 {[%emt 0:01:22]} Nxe5 {[%emt 0:00:07]} 15. b3 {[%emt 0:00:08]} e6 {[%emt 0:08:43]} 16. Rfd1 {[%emt 0:01:33]} Qe7 {[%emt 0:01:21]} 17. Be3 {[%emt 0:01:46]} f5 {[%emt 0:08:22]} 18. Qd2 {[%emt 0:17:01]} Rc6 {[%emt 0:04:52]} 19. h3 {[%emt 0:04:21]} fxe4 {[%emt 0:10:22] White now steadily converts the win.} ({Black should play} 19... Qf6 $14) 20. Nxe4 $16 {[%emt 0:00:37]} Nf7 {[%emt 0:02:08]} 21. Bd4 {[%emt 0:07:59]} Bh6 {[%emt 0:06:45] [#]} 22. Qe2 {[%emt 0:03:18] Hoping for Nf6+. White is much more active.} e5 {[%emt 0:04:19][%cal Oh6c1]} (22... Ng5 23. Be3) 23. Be3 {[%emt 0:00:15]} Bxe3 {[%emt 0:00:06]} 24. Qxe3 {[%emt 0:00:11]} Kg7 {[%emt 0:06:51]} (24... b5 $16 25. cxb5 Rxc1 26. Qxc1 axb5) 25. Rd5 $18 {[%emt 0:02:27]} Nh6 {[%emt 0:04:07]} 26. Qd2 {[%emt 0:05:47]} Nf5 {[%emt 0:00:58]} 27. c5 {[%emt 0:00:28][%cal Rc5d6]} Qe6 {[%emt 0:02:33]} (27... Nd4 {was worth a try.} 28. Rxd6 (28. cxd6 Rxc1+ 29. Qxc1 Qxd6 $16) 28... Rc7) 28. Re1 {[%emt 0:01:14]} ({Not} 28. Nxd6 Nd4 29. Rxd4 exd4 $16) 28... Nd4 {[%emt 0:06:42]} 29. Rxd6 {[%emt 0:01:14]} Rxd6 {[%emt 0:00:16]} 30. Nxd6 {[%emt 0:03:34][%cal Od2d4,Be4d6,Bd6b7,Bb7c5][%mdl 32] [#] Black must now prevent Qxd4!} Qd5 {[%emt 0:00:33]} 31. Qe3 {[%emt 0:01:52] Repels Nf3+} Qxc5 {[%emt 0:01:32]} 32. Nxb7 {[%emt 0:00:29]} Qb6 {[%emt 0:00:42]} 33. Qxe5+ {[%emt 0:00:22]} Kh6 $2 {[%emt 0:00:36]} (33... Qf6 {is tougher.} 34. Nc5 Qxe5 35. Rxe5 Rc8) 34. Nc5 {[%emt 0:00:53]} Nc2 {[%emt 0:00:25]} (34... Qf6) 35. Re4 {[%emt 0:00:46][%cal Re4h4]} Rf5 {[%emt 0:00:37]} 36. Rh4+ {[%emt 0:00:18] Weighted Error Value: White=0.19 (very precise) /Black=0.53.  Mistake:       	---       	Black=5      Inaccurate:     	White=1     	Black=2      OK:         	White=18    	Black=7      Best:        	---       	Black=1} 1-0

[Event "Serbian League 2024"]
[Site "Bajina Basta"]
[Date "2024.09.30"]
[Round "4.15"]
[White "Nenezic, Marko"]
[Black "Stojanovic, Mihajlo"]
[Result "1/2-1/2"]
[ECO "E04"]
[WhiteElo "2492"]
[BlackElo "2424"]
[Annotator "TA"]
[PlyCount "77"]
[EventDate "2024.09.26"]
[EventType "team-tourn"]
[EventCountry "SRB"]
[SourceTitle "playchess.com"]
[Source "ChessBase"]
[SourceQuality "1"]
[TimeControl "40/5400+30:1800+30"]

{[%evp 15,77,15,25,9,18,10,10,25,24,5,12,11,14,1,38,22,32,21,9,16,48,27,55,47,50,54,68,31,53,17,30,41,71,58,54,31,34,0,0,0,0,0,0,0,0,0,0,0,0,0,0,-3,0,0,0,-2,0,0,0,-24,0,-23,0,-37]} 1. Nf3 {[%emt 0:00:25]} d5 {[%emt 0:00:08]} 2. g3 {[%emt 0:00:05]} c5 {[%emt 0:00:53]} 3. Bg2 {[%emt 0:00:25]} Nc6 {[%emt 0:00:11]} 4. d4 {[%emt 0:00:17]} Nf6 {[%emt 0:00:36]} 5. O-O {[%emt 0:00:29]} e6 {[%emt 0:00:05]} 6. c4 {[%emt 0:00:18]} dxc4 {[%emt 0:00:13]} 7. Qa4 {[%emt 0:00:40]} Bd7 {[%emt 0:00:08]} 8. Qxc4 {[%emt 0:00:08]} b5 {[%emt 0:00:08]} 9. Qc3 {[%emt 0:02:03]} b4 {[%emt 0:01:00]} 10. Qd3 {[%emt 0:00:10]} Rc8 {[%emt 0:00:34]} 11. dxc5 {[%emt 0:00:39]} Bxc5 {[%emt 0:00:27]} 12. Nbd2 {[%emt 0:00:37]} O-O {[%emt 0:02:30]} 13. Nb3 {[%emt 0:00:56] Wards off e5} Bb6 {[%emt 0:10:39]} 14. Be3 {[%emt 0:00:56]} Qe7 {[%emt 0:09:25]} 15. Bxb6 {[%emt 0:34:25]} axb6 {[%emt 0:00:04]} 16. Rfc1 {[%emt 0:01:03]} Rfd8 {[%emt 0:02:21]} 17. Qa6 {[%emt 0:00:55]} Nd5 {[%emt 0:08:30]} 18. e4 {[%emt 0:05:10][%cal Be2e4,Be4e5][%mdl 32]} Ra8 {[%emt 0:00:40]} 19. Qe2 {[%emt 0:01:46]} Nf6 {[%emt 0:01:22]} 20. e5 {[%emt 0:00:23]} Nd5 {[%emt 0:00:22]} 21. h4 {[%emt 0:00:54]} Ra7 {[%emt 0:10:09]} 22. Rc2 {[%emt 0:10:48]} (22. Qe4 {is interesting.} Rc8 23. Ng5 g6 24. Nd4) 22... Rda8 {[%emt 0:05:37]} 23. Rac1 {[%emt 0:00:24]} Nd8 {[%emt 0:01:35]} 24. Ng5 {[%emt 0:10:05] Hoping for Qd3.} h6 $1 {[%emt 0:05:10]} 25. Ne4 {[%emt 0:00:03]} Nb7 {[%emt 0:04:45] Inhibits Nd6.} 26. Nd4 {[%emt 0:09:54]} Rxa2 {[%emt 0:00:14]} 27. Qg4 {[%emt 0:01:13][%cal Oe4f6] [#] Black must now prevent Nf6+!} Kf8 {[%emt 0:03:03]} 28. Nc6 {[%emt 0:04:32]} Bxc6 {[%emt 0:07:49]} 29. Rxc6 {[%emt 0:00:05] Strongly threatening Rc8+.} Ra1 $1 {[%emt 0:00:23]} ({Much worse is} 29... Rxb2 $6 30. Nd6 Nc3 31. R6xc3 (31. Rxb6 Nxd6 32. exd6 Qf6 $14) 31... bxc3 32. Bxb7 $18) 30. Qd1 {[%emt 0:02:04]} Rxc1 {[%emt 0:01:19]} 31. Qxc1 {[%emt 0:00:01]} Rd8 {[%emt 0:02:12] Prevents Nd6} 32. Kh2 {[%emt 0:02:11]} Kg8 {[%emt 0:08:04]} 33. h5 {[%emt 0:01:36]} Kf8 {[%emt 0:02:14]} 34. f4 {[%emt 0:01:57]} Kg8 {[%emt 0:04:02]} 35. Bf3 {[%emt 0:06:33]} Na5 {[%emt 0:03:26]} 36. Rd6 {[%emt 0:00:46]} Nb7 {[%emt 0:00:19] Excellent horsemanship.} 37. Rc6 {[%emt 0:01:12]} Na5 {[%emt 0:00:03]} 38. Rd6 {[%emt 0:01:36]} Nb7 {[%emt 0:00:06]} 39. Rc6 {[%emt 0:01:12] Weighted Error Value: White=0.08 (flawless) /Black=0.08 (flawless) .  Inaccurate:     	White=3     	Black=4      OK:         	White=17    	Black=9      Best:        	---       	Black=1      Strong:       	---       	Black=2} 1/2-1/2

[Event "Serbian League 2024"]
[Site "Bajina Basta"]
[Date "2024.09.30"]
[Round "4.16"]
[White "Nestorovic, Nikola"]
[Black "Perunovic, Miodrag"]
[Result "1-0"]
[ECO "A48"]
[WhiteElo "2458"]
[BlackElo "2347"]
[Annotator "RC"]
[PlyCount "53"]
[EventDate "2024.09.26"]
[EventType "team-tourn"]
[EventCountry "SRB"]
[SourceTitle "playchess.com"]
[Source "ChessBase"]
[SourceQuality "1"]
[TimeControl "40/5400+30:1800+30"]

1. d4 {[%emt 0:00:04]} Nf6 {[%emt 0:00:09]} 2. Nf3 {[%emt 0:00:07]} g6 {[%emt 0:02:06]} 3. Nbd2 {[%emt 0:00:12]} Bg7 {[%emt 0:00:17]} 4. e4 {[%emt 0:00:06]} O-O {[%emt 0:00:06]} 5. e5 {[%emt 0:00:07]} Nh5 {[%emt 0:00:16]} 6. g4 {[%emt 0:00:19]} Nf4 {[%emt 0:00:02]} 7. Ne4 {[%emt 0:00:07]} Nd5 {[%emt 0:00:54]} 8. c4 {[%emt 0:00:43]} Nb6 {[%emt 0:00:04]} 9. c5 {[%emt 0:00:23]} Nd5 {[%emt 0:00:03]} 10. Qb3 {[%emt 0:01:52]} c6 {[%emt 0:00:33]} 11. Bc4 {[%emt 0:25:34]} d6 {[%emt 0:10:03]} 12. cxd6 {[%emt 0:00:05]} Bxg4 {[%emt 0:00:47]} 13. Rg1 {[%emt 0:02:49]} Bf5 {[%emt 0:06:14]} 14. dxe7 {[%emt 0:00:54]} Qxe7 {[%emt 0:00:03]} 15. Nd6 {[%emt 0:06:47]} Be6 {[%emt 0:00:43]} 16. Ng5 {[%emt 0:00:57]} b5 {[%emt 0:04:39]} 17. Be2 {[%emt 0:06:04]} Bd7 {[%emt 0:24:41]} 18. f4 {[%emt 0:05:57]} f6 {[%emt 0:08:21]} 19. Nge4 {[%emt 0:00:30]} Be6 {[%emt 0:00:03]} 20. f5 {[%emt 0:02:13]} Bf7 {[%emt 0:31:32]} 21. Nxf7 {[%emt 0:05:24]} Qxf7 {[%emt 0:00:02]} 22. fxg6 {[%emt 0:01:21]} hxg6 {[%emt 0:00:02]} 23. Nd6 {[%emt 0:00:14]} Qe7 {[%emt 0:06:22]} 24. Rxg6 {[%emt 0:01:08]} fxe5 {[%emt 0:00:01]} 25. Bh6 {[%emt 0:06:45]} Qh4+ {[%emt 0:00:01]} 26. Qg3 {[%emt 0:00:08]} Qxg3+ {[%emt 0:00:04]} 27. Rxg3 {[%emt 0:00:08]} 1-0

[Event "Serbian League 2024"]
[Site "Bajina Basta"]
[Date "2024.09.30"]
[Round "4.17"]
[White "Radovanovic, Dusan"]
[Black "Todorovic, Goran M"]
[Result "1/2-1/2"]
[ECO "D34"]
[WhiteElo "2293"]
[BlackElo "2289"]
[Annotator "RC"]
[PlyCount "151"]
[EventDate "2024.09.26"]
[EventType "team-tourn"]
[EventCountry "SRB"]
[SourceTitle "playchess.com"]
[Source "ChessBase"]
[SourceQuality "1"]
[TimeControl "40/5400+30:1800+30"]

1. d4 {[%emt 0:01:02]} d5 {[%emt 0:00:17]} 2. c4 {[%emt 0:00:30]} e6 {[%emt 0:00:34]} 3. Nc3 {[%emt 0:00:15]} c5 {[%emt 0:01:38]} 4. cxd5 {[%emt 0:00:32]} exd5 {[%emt 0:00:11]} 5. Nf3 {[%emt 0:00:10]} Nc6 {[%emt 0:00:17]} 6. g3 {[%emt 0:00:46]} Nf6 {[%emt 0:00:09]} 7. Bg2 {[%emt 0:00:05]} Be7 {[%emt 0:00:46]} 8. O-O {[%emt 0:00:16]} O-O {[%emt 0:00:22]} 9. Bg5 {[%emt 0:00:43]} cxd4 {[%emt 0:00:50]} 10. Nxd4 {[%emt 0:00:16]} h6 {[%emt 0:00:59]} 11. Be3 {[%emt 0:00:17]} Re8 {[%emt 0:00:25]} 12. Qa4 {[%emt 0:02:32]} Bd7 {[%emt 0:00:44]} 13. Rfd1 {[%emt 0:01:02]} Na5 {[%emt 0:04:13]} 14. Qc2 {[%emt 0:00:47]} Nc4 {[%emt 0:01:25]} 15. Bf4 {[%emt 0:01:19]} Rc8 {[%emt 0:03:46]} 16. Nf5 {[%emt 0:03:55]} Bb4 {[%emt 0:23:40]} 17. Nxd5 {[%emt 0:32:51]} Ne3 {[%emt 0:23:04]} 18. Qxc8 {[%emt 0:02:18]} Bxc8 {[%emt 0:05:30]} 19. Nfxe3 {[%emt 0:23:49]} Nxd5 {[%emt 0:09:25]} 20. Nxd5 {[%emt 0:04:58]} Qa5 {[%emt 0:02:33]} 21. a3 {[%emt 0:10:44]} Be7 {[%emt 0:03:00]} 22. Bc7 {[%emt 0:06:32]} Qa4 {[%emt 0:01:53]} 23. Nxe7+ {[%emt 0:04:27]} Rxe7 {[%emt 0:00:07]} 24. Rd8+ {[%emt 0:00:15]} Re8 {[%emt 0:00:32]} 25. b3 {[%emt 0:00:15]} Qb5 {[%emt 0:00:18]} 26. Rad1 {[%emt 0:02:14]} Kh7 {[%emt 0:00:14]} 27. Rxe8 {[%emt 0:00:33]} Qxe8 {[%emt 0:00:07]} 28. e3 {[%emt 0:00:29]} Bf5 {[%emt 0:02:58]} 29. Rd4 {[%emt 0:00:36]} Qb5 {[%emt 0:00:27]} 30. Rd5 {[%emt 0:00:30]} Qxb3 {[%emt 0:00:30]} 31. h3 {[%emt 0:00:30]} Bxh3 {[%emt 0:01:34]} 32. Be4+ {[%emt 0:00:12]} f5 {[%emt 0:00:11]} 33. Bf3 {[%emt 0:00:11]} Qb1+ {[%emt 0:02:36]} 34. Rd1 {[%emt 0:00:18]} Qb2 {[%emt 0:04:45]} 35. Bf4 {[%emt 0:01:17]} Bg4 {[%emt 0:00:22]} 36. Bxg4 {[%emt 0:00:17]} fxg4 {[%emt 0:00:04]} 37. Rd7 {[%emt 0:00:18]} Qb1+ {[%emt 0:00:31]} 38. Kg2 {[%emt 0:00:38]} Kg6 {[%emt 0:00:35]} 39. Rd4 {[%emt 0:00:11]} b5 {[%emt 0:01:41]} 40. Bb8 {[%emt 0:00:58]} a5 {[%emt 0:03:09]} 41. Bc7 {[%emt 0:12:43]} b4 {[%emt 0:01:06]} 42. axb4 {[%emt 0:01:15]} axb4 {[%emt 0:08:18]} 43. Ba5 {[%emt 0:01:26]} b3 {[%emt 0:00:37]} 44. Rxg4+ {[%emt 0:00:09]} Kf7 {[%emt 0:08:15]} 45. Bc3 {[%emt 0:02:24]} g5 {[%emt 0:03:37]} 46. Rb4 {[%emt 0:01:47]} Ke6 {[%emt 0:03:41]} 47. Rb6+ {[%emt 0:06:34]} Kd5 {[%emt 0:00:08]} 48. Rxh6 {[%emt 0:02:13]} Qe4+ {[%emt 0:06:32]} 49. Kg1 {[%emt 0:00:38]} Kc4 {[%emt 0:00:13]} 50. Bd4 {[%emt 0:00:30]} Qb1+ {[%emt 0:00:31]} 51. Kg2 {[%emt 0:00:29]} Kd3 {[%emt 0:00:19]} 52. Rh1 {[%emt 0:01:26]} Qc2 {[%emt 0:00:11]} 53. Rh6 {[%emt 0:00:25]} Ke2 {[%emt 0:00:57]} 54. Rf6 {[%emt 0:00:40]} Ke1 {[%emt 0:02:35]} 55. Kg1 {[%emt 0:02:10]} g4 {[%emt 0:01:08]} 56. Rf4 {[%emt 0:00:38]} b2 {[%emt 0:01:04]} 57. Bxb2 {[%emt 0:00:12]} Qxb2 {[%emt 0:00:02]} 58. e4 {[%emt 0:03:01]} Qa1 {[%emt 0:01:12]} 59. e5 {[%emt 0:00:34]} Ke2+ {[%emt 0:00:14]} 60. Kg2 {[%emt 0:00:33]} Qxe5 {[%emt 0:01:20]} 61. Rxg4 {[%emt 0:00:41]} Qd5+ {[%emt 0:00:05]} 62. Kg1 {[%emt 0:00:16]} Qd1+ {[%emt 0:00:05]} 63. Kh2 {[%emt 0:00:53]} Kxf2 {[%emt 0:00:06]} 64. Rf4+ {[%emt 0:00:03]} Ke3 {[%emt 0:00:05]} 65. Kg2 {[%emt 0:00:14]} Qd2+ {[%emt 0:00:44]} 66. Kg1 {[%emt 0:00:38]} Qc2 {[%emt 0:00:36]} 67. Kh1 {[%emt 0:00:59]} Qc6+ {[%emt 0:00:52]} 68. Kg1 {[%emt 0:00:10]} Qd5 {[%emt 0:00:04]} 69. Kh2 {[%emt 0:00:23]} Qd2+ {[%emt 0:00:53]} 70. Kg1 {[%emt 0:00:08]} Qe2 {[%emt 0:00:10]} 71. Kh1 {[%emt 0:00:24]} Kd2 {[%emt 0:00:16]} 72. Rd4+ {[%emt 0:00:58]} Ke3 {[%emt 0:01:28]} 73. Rf4 {[%emt 0:00:01]} Qh5+ {[%emt 0:00:31]} 74. Kg2 {[%emt 0:00:14]} Qe2+ {[%emt 0:00:13]} 75. Kh1 {[%emt 0:00:17]} Qh5+ {[%emt 0:00:08]} 76. Kg2 {[%emt 0:00:05]} 1/2-1/2

[Event "Serbian League 2024"]
[Site "Bajina Basta"]
[Date "2024.09.30"]
[Round "4.18"]
[White "Arsovic, Goran"]
[Black "Pavlovic, Dejan S"]
[Result "1/2-1/2"]
[ECO "D46"]
[WhiteElo "2356"]
[BlackElo "2350"]
[Annotator "RC"]
[PlyCount "69"]
[EventDate "2024.09.26"]
[EventType "team-tourn"]
[EventCountry "SRB"]
[SourceTitle "playchess.com"]
[Source "ChessBase"]
[SourceQuality "1"]
[TimeControl "40/5400+30:1800+30"]

1. d4 {[%emt 0:00:06]} d5 {[%emt 0:01:26]} 2. Nf3 {[%emt 0:00:30]} Nf6 {[%emt 0:00:26]} 3. c4 {[%emt 0:00:33]} c6 {[%emt 0:00:12]} 4. e3 {[%emt 0:01:28]} e6 {[%emt 0:00:39]} 5. Bd3 {[%emt 0:01:16]} Nbd7 {[%emt 0:01:13]} 6. O-O {[%emt 0:01:05]} Bd6 {[%emt 0:04:06]} 7. Nc3 {[%emt 0:06:40]} O-O {[%emt 0:12:14]} 8. e4 {[%emt 0:04:08]} dxe4 {[%emt 0:00:28]} 9. Nxe4 {[%emt 0:00:21]} Nxe4 {[%emt 0:00:06]} 10. Bxe4 {[%emt 0:00:08]} h6 {[%emt 0:00:37]} 11. Bc2 {[%emt 0:06:51]} Re8 {[%emt 0:03:50]} 12. Re1 {[%emt 0:08:30]} b6 {[%emt 0:17:37]} 13. Qd3 {[%emt 0:07:31]} Nf6 {[%emt 0:04:56]} 14. Bd2 {[%emt 0:14:24]} Bb7 {[%emt 0:07:02]} 15. Bc3 {[%emt 0:01:35]} Qe7 {[%emt 0:06:45]} 16. a3 {[%emt 0:03:13]} Rad8 {[%emt 0:02:24]} 17. Rad1 {[%emt 0:16:35]} Qc7 {[%emt 0:09:15]} 18. b4 {[%emt 0:12:15]} Kf8 {[%emt 0:01:25]} 19. h3 {[%emt 0:01:33]} Ba6 {[%emt 0:09:46]} 20. Bb2 {[%emt 0:02:04]} Be7 {[%emt 0:02:04]} 21. Qc3 {[%emt 0:03:01]} c5 {[%emt 0:05:04]} 22. Ba4 {[%emt 0:02:40]} cxb4 {[%emt 0:00:43]} 23. axb4 {[%emt 0:00:04]} Qxc4 {[%emt 0:01:10]} 24. Bxe8 {[%emt 0:00:08]} Kxe8 {[%emt 0:01:23]} 25. Qxc4 {[%emt 0:01:54]} Bxc4 {[%emt 0:00:05]} 26. Ne5 {[%emt 0:00:35]} Bb5 {[%emt 0:00:39]} 27. Ra1 {[%emt 0:03:19]} Bxb4 {[%emt 0:01:29]} 28. Rec1 {[%emt 0:00:03]} a5 {[%emt 0:03:56]} 29. Rc7 {[%emt 0:00:40]} Bd6 {[%emt 0:02:49]} 30. Rb7 {[%emt 0:00:11]} Bxe5 {[%emt 0:00:17]} 31. dxe5 {[%emt 0:00:03]} Nd5 {[%emt 0:00:03]} 32. Bd4 {[%emt 0:02:20]} Bc6 {[%emt 0:00:01]} 33. Rxb6 {[%emt 0:00:30]} Nxb6 {[%emt 0:00:09]} 34. Bxb6 {[%emt 0:00:03]} Rd5 {[%emt 0:01:05]} 35. Rxa5 {[%emt 0:00:00]} 1/2-1/2

[Event "Serbian League 2024"]
[Site "Bajina Basta"]
[Date "2024.09.30"]
[Round "4.19"]
[White "Krstulovic, Alex"]
[Black "Benkovic, Petar"]
[Result "1-0"]
[ECO "D02"]
[WhiteElo "2452"]
[BlackElo "2362"]
[Annotator "RC"]
[PlyCount "125"]
[EventDate "2024.09.26"]
[EventType "team-tourn"]
[EventCountry "SRB"]
[SourceTitle "playchess.com"]
[Source "ChessBase"]
[SourceQuality "1"]
[TimeControl "40/5400+30:1800+30"]

1. d4 {[%emt 0:00:03]} d5 {[%emt 0:02:10]} 2. Nf3 {[%emt 0:00:09]} e6 {[%emt 0:00:29]} 3. Bf4 {[%emt 0:00:17]} Bd6 {[%emt 0:00:12]} 4. e3 {[%emt 0:00:13]} Nf6 {[%emt 0:01:03]} 5. Ne5 {[%emt 0:00:05]} O-O {[%emt 0:01:00]} 6. Nd2 {[%emt 0:00:05]} c5 {[%emt 0:01:45]} 7. c3 {[%emt 0:00:51]} b6 {[%emt 0:08:30]} 8. h4 {[%emt 0:00:16]} Ba6 {[%emt 0:12:27]} 9. Bxa6 {[%emt 0:00:29]} Nxa6 {[%emt 0:00:02]} 10. h5 {[%emt 0:00:07]} Ne8 {[%emt 0:05:37]} 11. h6 {[%emt 0:03:30]} g6 {[%emt 0:02:35]} 12. Ndf3 {[%emt 0:10:42]} Nb8 {[%emt 0:06:50]} 13. Qe2 {[%emt 0:10:11]} a6 {[%emt 0:04:04]} 14. g4 {[%emt 0:07:40]} Ra7 {[%emt 0:10:50]} 15. g5 {[%emt 0:01:26]} Rc7 {[%emt 0:00:31]} 16. Rd1 {[%emt 0:02:41]} cxd4 {[%emt 0:01:00]} 17. exd4 {[%emt 0:05:42]} b5 {[%emt 0:01:36]} 18. a3 {[%emt 0:01:59]} Nc6 {[%emt 0:01:02]} 19. Rg1 {[%emt 0:03:01]} Ne7 {[%emt 0:04:30]} 20. Nh4 {[%emt 0:12:23]} Qc8 {[%emt 0:01:29]} 21. Kf1 {[%emt 0:03:15]} Rb7 {[%emt 0:01:19]} 22. Qe3 {[%emt 0:03:57]} a5 {[%emt 0:03:01]} 23. Ng4 {[%emt 0:05:45]} Qc7 {[%emt 0:12:44]} 24. Be5 {[%emt 0:06:23]} Bxe5 {[%emt 0:02:54]} 25. dxe5 {[%emt 0:01:15]} Qc4+ {[%emt 0:05:28]} 26. Qe2 {[%emt 0:00:12]} Nc6 {[%emt 0:00:30]} 27. Nf3 {[%emt 0:00:37]} Qxe2+ {[%emt 0:02:46]} 28. Kxe2 {[%emt 0:00:02]} Nc7 {[%emt 0:00:58]} 29. Nd4 {[%emt 0:00:43]} Ne7 {[%emt 0:01:01]} 30. Nb3 {[%emt 0:11:02]} Ra7 {[%emt 0:02:38]} 31. Nc5 {[%emt 0:00:04]} Na6 {[%emt 0:00:53]} 32. Nb3 {[%emt 0:04:18]} Nc7 {[%emt 0:01:01]} 33. Rg3 {[%emt 0:01:03]} Rc8 {[%emt 0:00:50]} 34. Nd4 {[%emt 0:00:52]} Rb7 {[%emt 0:01:29]} 35. Nf6+ {[%emt 0:00:07]} Kh8 {[%emt 0:00:20]} 36. Rf3 {[%emt 0:00:02]} Nf5 {[%emt 0:00:34]} 37. Nc6 {[%emt 0:04:01]} Ra8 {[%emt 0:00:25]} 38. b3 {[%emt 0:00:02]} Rb6 {[%emt 0:01:48]} 39. Nd4 {[%emt 0:00:01]} Ne8 {[%emt 0:00:45]} 40. Nxf5 {[%emt 0:02:23]} gxf5 {[%emt 0:00:27]} 41. c4 {[%emt 0:04:07]} bxc4 {[%emt 0:05:55]} 42. bxc4 {[%emt 0:00:19]} Rb2+ {[%emt 0:00:36]} 43. Rd2 {[%emt 0:02:48]} Rxd2+ {[%emt 0:00:24]} 44. Kxd2 {[%emt 0:00:07]} dxc4 {[%emt 0:00:23]} 45. Kc3 {[%emt 0:06:57]} Rc8 {[%emt 0:10:16]} 46. Nxe8 {[%emt 0:01:33]} Rxe8 {[%emt 0:00:02]} 47. Kxc4 {[%emt 0:00:06]} Kg8 {[%emt 0:02:47]} 48. Kb5 {[%emt 0:03:09]} Ra8 {[%emt 0:04:08]} 49. a4 {[%emt 0:01:47]} Kf8 {[%emt 0:00:22]} 50. Rc3 {[%emt 0:00:08]} f4 {[%emt 0:00:21]} 51. Rf3 {[%emt 0:05:53]} Rd8 {[%emt 0:02:32]} 52. Kxa5 {[%emt 0:00:14]} Rd5+ {[%emt 0:00:07]} 53. Kb6 {[%emt 0:00:07]} Rxe5 {[%emt 0:00:07]} 54. a5 {[%emt 0:00:50]} Rxg5 {[%emt 0:06:23]} 55. a6 {[%emt 0:00:09]} Rg1 {[%emt 0:00:22]} 56. Rxf4 {[%emt 0:00:39]} Ra1 {[%emt 0:00:30]} 57. Kb5 {[%emt 0:02:14]} Ke7 {[%emt 0:00:21]} 58. Ra4 {[%emt 0:00:54]} Rb1+ {[%emt 0:00:38]} 59. Ka5 {[%emt 0:00:12]} Kd6 {[%emt 0:03:16]} 60. a7 {[%emt 0:00:04]} Kc5 {[%emt 0:00:06]} 61. a8=Q {[%emt 0:00:22]} Rb5+ {[%emt 0:00:07]} 62. Ka6 {[%emt 0:00:03]} Rb6+ {[%emt 0:00:07]} 63. Ka7 {[%emt 0:00:05]} 1-0